[Event "Titled Tuesday Blitz January 17 Early 2023"]
[White "Rozman, Levy"]
[Black "Flores Quillas, Diego Saul Rodri"]
[WhiteFideId "2039877"]
[BlackFideId "3822508"]
[WhiteElo "2322"]
[BlackElo "2359"]
[Result "0-1"]
[Round "08"]
[TimeControl "180+2"]
[Date "2023.01.17"]
[WhiteClock "0:00:03"]
[BlackClock "0:00:04"]

1. e4 {[%clk 0:02:59]}  c5 {[%clk 0:02:28]} 2. a3 {[%clk 0:02:59]}  d5 {[%clk 0:02:26]} 3. exd5 {[%clk 0:02:59]}  Qxd5 {[%clk 0:02:27]} 4. Nf3 {[%clk 0:02:59]}  Nc6 {[%clk 0:02:23]} 5. Nc3 {[%clk 0:02:59]}  Qd8 {[%clk 0:02:19]} 6. Bb5 {[%clk 0:02:59]}  Bd7 {[%clk 0:02:18]} 7. O-O {[%clk 0:02:59]}  Nf6 {[%clk 0:02:16]} 8. d4 {[%clk 0:02:58]}  cxd4 {[%clk 0:02:14]} 9. Nxd4 {[%clk 0:02:55]}  Nxd4 {[%clk 0:02:11]} 10. Qxd4 {[%clk 0:02:56]}  Bxb5 {[%clk 0:02:11]} 11. Nxb5 {[%clk 0:02:53]}  Qxd4 {[%clk 0:02:11]} 12. Nxd4 {[%clk 0:02:54]}  Rc8 {[%clk 0:02:02]} 13. Bf4 {[%clk 0:02:28]}  a6 {[%clk 0:01:45]} 14. Rac1 {[%clk 0:02:21]}  e6 {[%clk 0:01:44]} 15. c4 {[%clk 0:02:19]}  Be7 {[%clk 0:01:33]} 16. b4 {[%clk 0:02:18]}  O-O {[%clk 0:01:33]} 17. Nb3 {[%clk 0:02:10]}  Rfd8 {[%clk 0:01:26]} 18. c5 {[%clk 0:02:10]}  Nd5 {[%clk 0:01:24]} 19. Bg3 {[%clk 0:02:08]}  Bf6 {[%clk 0:01:23]} 20. Rc2 {[%clk 0:02:03]}  g5 {[%clk 0:01:15]} 21. Na5 {[%clk 0:01:54]}  Rd7 {[%clk 0:01:14]} 22. Rfc1 {[%clk 0:01:46]}  Nc3 {[%clk 0:01:02]} 23. h3 {[%clk 0:01:32]}  Ne4 {[%clk 0:00:39]} 24. Nc4 {[%clk 0:01:13]}  Rd3 {[%clk 0:00:27]} 25. a4 {[%clk 0:00:48]}  Rb3 {[%clk 0:00:18]} 26. Nd6 {[%clk 0:00:48]}  Nxd6 {[%clk 0:00:15]} 27. Bxd6 {[%clk 0:00:49]}  Rc6 {[%clk 0:00:12]} 28. Rc4 {[%clk 0:00:46]}  Kg7 {[%clk 0:00:09]} 29. a5 {[%clk 0:00:38]}  Kg6 {[%clk 0:00:08]} 30. g4 {[%clk 0:00:37]}  h5 {[%clk 0:00:08]} 31. Kg2 {[%clk 0:00:36]}  Bb2 {[%clk 0:00:08]} 32. Rb1 {[%clk 0:00:35]}  hxg4 {[%clk 0:00:07]} 33. Rxg4 {[%clk 0:00:33]}  f5 {[%clk 0:00:03]} 34. Rc4 {[%clk 0:00:26]}  Rc3 {[%clk 0:00:03]} 35. Rd4 {[%clk 0:00:24]}  Rc2 {[%clk 0:00:02]} 36. Rd3 {[%clk 0:00:21]}  Bf6 {[%clk 0:00:02]} 37. b5 {[%clk 0:00:19]}  axb5 {[%clk 0:00:03]} 38. Rxb5 {[%clk 0:00:20]}  Ra2 {[%clk 0:00:02]} 39. Rdb3 {[%clk 0:00:10]}  Bd4 {[%clk 0:00:02]} 40. Rf3 {[%clk 0:00:09]}  f4 {[%clk 0:00:02]} 41. h4 {[%clk 0:00:08]}  e5 {[%clk 0:00:01]} 42. hxg5 {[%clk 0:00:08]}  Kxg5 {[%clk 0:00:02]} 43. Rxb7 {[%clk 0:00:08]}  Rxa5 {[%clk 0:00:02]} 44. Rg7+ {[%clk 0:00:09]}  Kf5 {[%clk 0:00:02]} 45. Rf7+ {[%clk 0:00:08]}  Ke4 {[%clk 0:00:03]} 46. Re7 {[%clk 0:00:04]}  Ra2 {[%clk 0:00:03]} 47. Re8 {[%clk 0:00:03]}  Rca6 {[%clk 0:00:02]} 48. Rb3 {[%clk 0:00:01]}  Rxf2+ {[%clk 0:00:02]} 49. Kh3 {[%clk 0:00:02]}  Rf3+ {[%clk 0:00:02]} 50. Rxf3 {[%clk 0:00:01]}  Kxf3 {[%clk 0:00:03]} 51. Kh4 {[%clk 0:00:02]}  Rc6 {[%clk 0:00:02]} 52. Bxe5 {[%clk 0:00:03]}  Bxc5 {[%clk 0:00:01]} 53. Bf6 {[%clk 0:00:01]}  Be3 {[%clk 0:00:02]} 54. Bg5 {[%clk 0:00:01]}  Rc1 {[%clk 0:00:02]} 55. Kh5 {[%clk 0:00:02]}  Rh1+ {[%clk 0:00:03]} 56. Kg6 {[%clk 0:00:03]}  Kg3 {[%clk 0:00:03]} 57. Kf5 {[%clk 0:00:03]}  Bd2 {[%clk 0:00:03]} 58. Rg8 {[%clk 0:00:04]}  Kf3 {[%clk 0:00:03]} 59. Rf8 {[%clk 0:00:04]}  Ke2 {[%clk 0:00:03]} 60. Bxf4 {[%clk 0:00:04]}  Bxf4 {[%clk 0:00:03]} 61. Ke4 {[%clk 0:00:03]}  Be3 {[%clk 0:00:03]} 62. Rf3 {[%clk 0:00:03]}  Rh4+ {[%clk 0:00:04]} 0-1


[Site "https://www.chess.com"]

[Event "Titled Tuesday Blitz January 17 Early 2023"]
[White "Starozhilov, Leonid"]
[Black "Womacka, Mathias"]
[WhiteFideId "14106752"]
[BlackFideId "4611390"]
[WhiteElo "2313"]
[BlackElo "2396"]
[Result "0-1"]
[Round "08"]
[TimeControl "180+2"]
[Date "2023.01.17"]
[WhiteClock "0:00:05"]
[BlackClock "0:00:02"]

1. e4 {[%clk 0:03:00]}  c5 {[%clk 0:02:59]} 2. Nf3 {[%clk 0:02:58]}  d6 {[%clk 0:02:59]} 3. Bb5+ {[%clk 0:02:58]}  Nd7 {[%clk 0:02:58]} 4. O-O {[%clk 0:02:58]}  a6 {[%clk 0:02:58]} 5. Bxd7+ {[%clk 0:02:58]}  Bxd7 {[%clk 0:02:59]} 6. c3 {[%clk 0:02:58]}  Nf6 {[%clk 0:02:58]} 7. Re1 {[%clk 0:02:58]}  g6 {[%clk 0:02:46]} 8. d4 {[%clk 0:02:57]}  Bg7 {[%clk 0:02:46]} 9. Bg5 {[%clk 0:02:53]}  h6 {[%clk 0:02:45]} 10. Bh4 {[%clk 0:02:31]}  O-O {[%clk 0:02:43]} 11. Nbd2 {[%clk 0:02:31]}  cxd4 {[%clk 0:02:42]} 12. cxd4 {[%clk 0:02:30]}  Rc8 {[%clk 0:02:32]} 13. Qb3 {[%clk 0:02:16]}  b5 {[%clk 0:02:16]} 14. e5 {[%clk 0:02:16]}  dxe5 {[%clk 0:02:15]} 15. dxe5 {[%clk 0:02:16]}  Nh5 {[%clk 0:02:06]} 16. Rad1 {[%clk 0:01:36]}  g5 {[%clk 0:01:29]} 17. Bxg5 {[%clk 0:01:17]}  hxg5 {[%clk 0:01:26]} 18. Nxg5 {[%clk 0:01:17]}  Qb6 {[%clk 0:01:25]} 19. Qd3 {[%clk 0:00:34]}  Qg6 {[%clk 0:01:15]} 20. Qxd7 {[%clk 0:00:34]}  Qxg5 {[%clk 0:01:15]} 21. Nf3 {[%clk 0:00:35]}  Qg6 {[%clk 0:01:09]} 22. Qxe7 {[%clk 0:00:30]}  Rc2 {[%clk 0:00:56]} 23. Rd6 {[%clk 0:00:25]}  Qf5 {[%clk 0:00:40]} 24. e6 {[%clk 0:00:23]}  Nf4 {[%clk 0:00:30]} 25. exf7+ {[%clk 0:00:19]}  Rxf7 {[%clk 0:00:31]} 26. Rd8+ {[%clk 0:00:18]}  Rf8 {[%clk 0:00:30]} 27. Rxf8+ {[%clk 0:00:16]}  Bxf8 {[%clk 0:00:31]} 28. Qh4 {[%clk 0:00:10]}  Re2 {[%clk 0:00:21]} 29. Rd1 {[%clk 0:00:10]}  Re4 {[%clk 0:00:08]} 30. Qg3+ {[%clk 0:00:10]}  Ng6 {[%clk 0:00:07]} 31. h4 {[%clk 0:00:08]}  Rg4 {[%clk 0:00:06]} 32. Qh2 {[%clk 0:00:06]}  Qxf3 {[%clk 0:00:03]} 33. h5 {[%clk 0:00:05]}  Qxd1# {[%clk 0:00:02]} 0-1


[Site "https://www.chess.com"]

[Event "Titled Tuesday Blitz January 17 Early 2023"]
[White "Papasimakopoulos, Alexandros"]
[Black "Kukula, Pawel"]
[WhiteFideId "4244125"]
[BlackFideId "1115081"]
[WhiteElo "2401"]
[BlackElo "2135"]
[Result "1-0"]
[Round "08"]
[TimeControl "180+2"]
[Date "2023.01.17"]
[WhiteClock "0:00:12"]
[BlackClock "0:00:01"]

1. d4 {[%clk 0:03:00]}  Nf6 {[%clk 0:02:59]} 2. c4 {[%clk 0:02:55]}  g6 {[%clk 0:02:59]} 3. Nc3 {[%clk 0:02:54]}  Bg7 {[%clk 0:03:00]} 4. Bg5 {[%clk 0:02:44]}  O-O {[%clk 0:03:01]} 5. e3 {[%clk 0:02:43]}  c5 {[%clk 0:03:01]} 6. d5 {[%clk 0:02:32]}  d6 {[%clk 0:02:57]} 7. Bd3 {[%clk 0:02:24]}  e6 {[%clk 0:02:56]} 8. h3 {[%clk 0:02:18]}  Qa5 {[%clk 0:02:28]} 9. Qd2 {[%clk 0:02:04]}  h6 {[%clk 0:02:20]} 10. Bh4 {[%clk 0:01:57]}  e5 {[%clk 0:01:57]} 11. f4 {[%clk 0:01:27]}  exf4 {[%clk 0:01:48]} 12. exf4 {[%clk 0:01:28]}  a6 {[%clk 0:01:40]} 13. Nf3 {[%clk 0:01:18]}  b5 {[%clk 0:01:32]} 14. O-O {[%clk 0:01:15]}  bxc4 {[%clk 0:01:28]} 15. Bxc4 {[%clk 0:01:16]}  Nbd7 {[%clk 0:01:26]} 16. Rfe1 {[%clk 0:01:08]}  Nb6 {[%clk 0:01:25]} 17. Bf1 {[%clk 0:00:53]}  Bb7 {[%clk 0:01:09]} 18. f5 {[%clk 0:00:52]}  g5 {[%clk 0:00:52]} 19. Bg3 {[%clk 0:00:49]}  Rad8 {[%clk 0:00:50]} 20. Nxg5 {[%clk 0:00:43]}  hxg5 {[%clk 0:00:39]} 21. Qxg5 {[%clk 0:00:44]}  Nh7 {[%clk 0:00:35]} 22. Qg4 {[%clk 0:00:38]}  Qb4 {[%clk 0:00:30]} 23. Ne4 {[%clk 0:00:34]}  Nxd5 {[%clk 0:00:23]} 24. Bxd6 {[%clk 0:00:19]}  Qd4+ {[%clk 0:00:15]} 25. Kh1 {[%clk 0:00:18]}  Nhf6 {[%clk 0:00:05]} 26. Nxf6+ {[%clk 0:00:18]}  Nxf6 {[%clk 0:00:05]} 27. Qxd4 {[%clk 0:00:17]}  cxd4 {[%clk 0:00:06]} 28. Bxf8 {[%clk 0:00:18]}  Kxf8 {[%clk 0:00:07]} 29. Rad1 {[%clk 0:00:17]}  Nh5 {[%clk 0:00:07]} 30. Kg1 {[%clk 0:00:17]}  Bh6 {[%clk 0:00:06]} 31. g4 {[%clk 0:00:12]}  Nf6 {[%clk 0:00:05]} 32. Bg2 {[%clk 0:00:12]}  Bxg2 {[%clk 0:00:03]} 33. Kxg2 {[%clk 0:00:12]}  Nd5 {[%clk 0:00:04]} 34. Kf3 {[%clk 0:00:12]}  Ne3 {[%clk 0:00:04]} 35. Rd3 {[%clk 0:00:12]}  Rb8 {[%clk 0:00:02]} 36. Re2 {[%clk 0:00:12]}  Nc4 {[%clk 0:00:01]} 37. b3 {[%clk 0:00:12]}  Nb6 {[%clk 0:00:01]} 38. Rxd4 {[%clk 0:00:12]}  Bg7 {[%clk 0:00:01]} 39. Rb4 {[%clk 0:00:12]} 1-0


[Site "https://www.chess.com"]

[Event "Titled Tuesday Blitz January 17 Early 2023"]
[White "Gurevich, Dmitry"]
[Black "Liyanage, Ranindu Dilshan"]
[WhiteFideId "2000407"]
[BlackFideId "9915834"]
[WhiteElo "2393"]
[BlackElo "2342"]
[Result "0-1"]
[Round "08"]
[TimeControl "180+2"]
[Date "2023.01.17"]
[WhiteClock "0:00:15"]
[BlackClock "0:00:17"]

1. d4 {[%clk 0:03:00]}  Nf6 {[%clk 0:02:56]} 2. c4 {[%clk 0:03:00]}  e6 {[%clk 0:02:56]} 3. Nc3 {[%clk 0:03:00]}  Bb4 {[%clk 0:02:56]} 4. a3 {[%clk 0:03:00]}  Bxc3+ {[%clk 0:02:55]} 5. bxc3 {[%clk 0:03:00]}  O-O {[%clk 0:02:54]} 6. e3 {[%clk 0:02:59]}  d5 {[%clk 0:02:53]} 7. cxd5 {[%clk 0:02:58]}  exd5 {[%clk 0:02:54]} 8. Bd3 {[%clk 0:02:58]}  c5 {[%clk 0:02:50]} 9. Ne2 {[%clk 0:02:57]}  Nc6 {[%clk 0:02:43]} 10. O-O {[%clk 0:02:56]}  c4 {[%clk 0:02:43]} 11. Bb1 {[%clk 0:02:54]}  Re8 {[%clk 0:02:40]} 12. f3 {[%clk 0:02:53]}  Qa5 {[%clk 0:02:31]} 13. a4 {[%clk 0:02:46]}  b5 {[%clk 0:02:27]} 14. Qc2 {[%clk 0:02:41]}  b4 {[%clk 0:02:25]} 15. cxb4 {[%clk 0:02:41]}  Nxb4 {[%clk 0:02:23]} 16. Qc3 {[%clk 0:02:38]}  Rb8 {[%clk 0:02:10]} 17. Ng3 {[%clk 0:02:27]}  Nc6 {[%clk 0:02:03]} 18. Qa3 {[%clk 0:02:15]}  Rb3 {[%clk 0:01:48]} 19. Qc5 {[%clk 0:02:13]}  Qc3 {[%clk 0:01:37]} 20. Ra3 {[%clk 0:02:05]}  Rxa3 {[%clk 0:01:34]} 21. Qxa3 {[%clk 0:02:03]}  Qxa3 {[%clk 0:01:34]} 22. Bxa3 {[%clk 0:02:02]}  Rxe3 {[%clk 0:01:35]} 23. Bc5 {[%clk 0:01:59]}  g6 {[%clk 0:01:25]} 24. Kf2 {[%clk 0:01:57]}  Rb3 {[%clk 0:01:23]} 25. Re1 {[%clk 0:01:57]}  c3 {[%clk 0:01:16]} 26. Bc2 {[%clk 0:01:51]}  Rb2 {[%clk 0:01:13]} 27. Rc1 {[%clk 0:01:50]}  Na5 {[%clk 0:01:08]} 28. Ke3 {[%clk 0:01:32]}  Ba6 {[%clk 0:01:04]} 29. Kf4 {[%clk 0:01:21]}  h6 {[%clk 0:00:50]} 30. Bxa7 {[%clk 0:01:03]}  Nd7 {[%clk 0:00:44]} 31. h4 {[%clk 0:00:51]}  Nf8 {[%clk 0:00:43]} 32. Ke5 {[%clk 0:00:49]}  Nc6+ {[%clk 0:00:42]} 33. Kxd5 {[%clk 0:00:45]}  Nxa7 {[%clk 0:00:42]} 34. Ne4 {[%clk 0:00:42]}  Kg7 {[%clk 0:00:39]} 35. Nxc3 {[%clk 0:00:41]}  Ne6 {[%clk 0:00:39]} 36. Ne4 {[%clk 0:00:35]}  Nf4+ {[%clk 0:00:37]} 37. Kd6 {[%clk 0:00:30]}  Ne2 {[%clk 0:00:36]} 38. Rb1 {[%clk 0:00:21]}  Rxc2 {[%clk 0:00:30]} 39. Nc5 {[%clk 0:00:21]}  Bc8 {[%clk 0:00:23]} 40. Rb8 {[%clk 0:00:20]}  Nxd4 {[%clk 0:00:17]} 41. Ra8 {[%clk 0:00:20]}  Ne6 {[%clk 0:00:16]} 42. Nxe6+ {[%clk 0:00:16]}  Bxe6 {[%clk 0:00:17]} 43. Rxa7 {[%clk 0:00:16]}  Rxg2 {[%clk 0:00:17]} 44. a5 {[%clk 0:00:16]}  Rf2 {[%clk 0:00:16]} 45. a6 {[%clk 0:00:15]}  Rxf3 {[%clk 0:00:17]} 0-1


[Site "https://www.chess.com"]

[Event "Titled Tuesday Blitz January 17 Early 2023"]
[White "Papayan, Oleg"]
[Black "Shuvalova, Polina"]
[WhiteFideId "4193911"]
[BlackFideId "24171760"]
[WhiteElo "2253"]
[BlackElo "2484"]
[Result "1/2-1/2"]
[Round "08"]
[TimeControl "180+2"]
[Date "2023.01.17"]
[WhiteClock "0:02:08"]
[BlackClock "0:01:49"]

1. e4 {[%clk 0:03:00]}  c6 {[%clk 0:02:58]} 2. d4 {[%clk 0:02:59]}  d5 {[%clk 0:02:59]} 3. Nc3 {[%clk 0:03:00]}  dxe4 {[%clk 0:02:54]} 4. Nxe4 {[%clk 0:03:00]}  Nf6 {[%clk 0:02:54]} 5. Nxf6+ {[%clk 0:03:01]}  exf6 {[%clk 0:02:55]} 6. Bc4 {[%clk 0:03:01]}  Bd6 {[%clk 0:02:54]} 7. Ne2 {[%clk 0:03:01]}  O-O {[%clk 0:02:53]} 8. O-O {[%clk 0:03:00]}  Nd7 {[%clk 0:02:51]} 9. Ng3 {[%clk 0:03:00]}  g6 {[%clk 0:02:46]} 10. Bh6 {[%clk 0:02:46]}  Re8 {[%clk 0:02:46]} 11. c3 {[%clk 0:02:45]}  Nb6 {[%clk 0:02:44]} 12. Bb3 {[%clk 0:02:44]}  Be6 {[%clk 0:02:42]} 13. Re1 {[%clk 0:02:42]}  Bxb3 {[%clk 0:02:26]} 14. axb3 {[%clk 0:02:40]}  f5 {[%clk 0:02:15]} 15. Qd2 {[%clk 0:02:25]}  Bf8 {[%clk 0:01:51]} 16. Rxe8 {[%clk 0:02:13]}  Qxe8 {[%clk 0:01:49]} 17. Nxf5 {[%clk 0:02:08]} 1/2-1/2


[Site "https://www.chess.com"]

[Event "Titled Tuesday Blitz January 17 Early 2023"]
[White "Baskakov, Egor"]
[Black "Ginzburg, Yakov"]
[WhiteFideId "24197866"]
[BlackFideId "4157176"]
[WhiteElo "2215"]
[BlackElo "2405"]
[Result "1-0"]
[Round "08"]
[TimeControl "180+2"]
[Date "2023.01.17"]
[WhiteClock "0:00:16"]
[BlackClock "0:00:02"]

1. e4 {[%clk 0:03:00]}  c5 {[%clk 0:02:55]} 2. Nf3 {[%clk 0:03:00]}  e6 {[%clk 0:02:55]} 3. Be2 {[%clk 0:03:00]}  d5 {[%clk 0:02:53]} 4. exd5 {[%clk 0:02:59]}  exd5 {[%clk 0:02:53]} 5. O-O {[%clk 0:02:58]}  Nf6 {[%clk 0:02:53]} 6. d4 {[%clk 0:02:59]}  Be7 {[%clk 0:02:53]} 7. Nc3 {[%clk 0:02:58]}  O-O {[%clk 0:02:54]} 8. Re1 {[%clk 0:02:58]}  Nc6 {[%clk 0:02:52]} 9. Bg5 {[%clk 0:02:56]}  Ne4 {[%clk 0:02:46]} 10. Bxe7 {[%clk 0:02:53]}  Nxe7 {[%clk 0:02:47]} 11. Bd3 {[%clk 0:02:42]}  Nxc3 {[%clk 0:02:43]} 12. bxc3 {[%clk 0:02:43]}  Bf5 {[%clk 0:02:39]} 13. Rxe7 {[%clk 0:02:35]}  Bxd3 {[%clk 0:02:38]} 14. Rxb7 {[%clk 0:02:36]}  Ba6 {[%clk 0:02:23]} 15. Rbb1 {[%clk 0:02:35]}  Re8 {[%clk 0:02:08]} 16. Qd2 {[%clk 0:02:25]}  Re2 {[%clk 0:02:06]} 17. Qf4 {[%clk 0:02:18]}  Rxc2 {[%clk 0:01:57]} 18. Rc1 {[%clk 0:01:58]}  Rb2 {[%clk 0:01:40]} 19. dxc5 {[%clk 0:01:54]}  Qe7 {[%clk 0:01:30]} 20. Qd4 {[%clk 0:01:09]}  h6 {[%clk 0:00:53]} 21. Re1 {[%clk 0:01:03]}  Qb7 {[%clk 0:00:46]} 22. Nh4 {[%clk 0:00:45]}  g6 {[%clk 0:00:26]} 23. Nf3 {[%clk 0:00:43]}  Rb8 {[%clk 0:00:18]} 24. Ne5 {[%clk 0:00:42]}  Re2 {[%clk 0:00:18]} 25. Ng4 {[%clk 0:00:37]}  Qe7 {[%clk 0:00:11]} 26. Rf1 {[%clk 0:00:24]}  Re6 {[%clk 0:00:05]} 27. Rfd1 {[%clk 0:00:19]}  Kh7 {[%clk 0:00:04]} 28. Ne3 {[%clk 0:00:18]}  Bb7 {[%clk 0:00:03]} 29. Rab1 {[%clk 0:00:18]}  Bc6 {[%clk 0:00:03]} 30. Rxb8 {[%clk 0:00:17]}  Be8 {[%clk 0:00:03]} 31. h3 {[%clk 0:00:16]}  h5 {[%clk 0:00:03]} 32. Nxd5 {[%clk 0:00:16]}  Re1+ {[%clk 0:00:03]} 33. Rxe1 {[%clk 0:00:17]}  Qxe1+ {[%clk 0:00:03]} 34. Kh2 {[%clk 0:00:18]}  h4 {[%clk 0:00:03]} 35. Rxe8 {[%clk 0:00:16]}  Qxe8 {[%clk 0:00:02]} 36. Nf6+ {[%clk 0:00:16]} 1-0


[Site "https://www.chess.com"]

[Event "Titled Tuesday Blitz January 17 Early 2023"]
[White "Melian, Juan Sebastian"]
[Black "Lagno, Kateryna"]
[WhiteFideId "3706575"]
[BlackFideId "14109336"]
[WhiteElo "2293"]
[BlackElo "2558"]
[Result "1-0"]
[Round "08"]
[TimeControl "180+2"]
[Date "2023.01.17"]
[WhiteClock "0:00:13"]
[BlackClock "0:00:52"]

1. d4 {[%clk 0:03:00]}  Nf6 {[%clk 0:02:58]} 2. c4 {[%clk 0:03:00]}  g6 {[%clk 0:02:57]} 3. Nc3 {[%clk 0:02:59]}  d5 {[%clk 0:02:58]} 4. e3 {[%clk 0:02:57]}  Bg7 {[%clk 0:02:57]} 5. Qb3 {[%clk 0:02:57]}  dxc4 {[%clk 0:02:50]} 6. Bxc4 {[%clk 0:02:58]}  O-O {[%clk 0:02:50]} 7. Nf3 {[%clk 0:02:58]}  c5 {[%clk 0:02:50]} 8. O-O {[%clk 0:02:54]}  Nc6 {[%clk 0:02:45]} 9. dxc5 {[%clk 0:02:32]}  Na5 {[%clk 0:02:38]} 10. Qb4 {[%clk 0:02:25]}  Nxc4 {[%clk 0:02:39]} 11. Qxc4 {[%clk 0:02:26]}  Be6 {[%clk 0:02:40]} 12. Qb4 {[%clk 0:02:20]}  Qc7 {[%clk 0:02:39]} 13. e4 {[%clk 0:02:19]}  Nd7 {[%clk 0:02:30]} 14. Be3 {[%clk 0:02:19]}  Bg4 {[%clk 0:02:20]} 15. Nd5 {[%clk 0:02:09]}  Qd8 {[%clk 0:02:17]} 16. Nd2 {[%clk 0:01:58]}  e6 {[%clk 0:02:12]} 17. Nc3 {[%clk 0:01:51]}  Ne5 {[%clk 0:02:10]} 18. h3 {[%clk 0:01:38]}  Be2 {[%clk 0:02:09]} 19. Nxe2 {[%clk 0:01:37]}  a5 {[%clk 0:01:48]} 20. Qa3 {[%clk 0:01:30]}  f5 {[%clk 0:01:45]} 21. exf5 {[%clk 0:01:25]}  exf5 {[%clk 0:01:45]} 22. Nf4 {[%clk 0:01:24]}  Qf6 {[%clk 0:01:42]} 23. Qb3+ {[%clk 0:01:12]}  Rf7 {[%clk 0:01:41]} 24. Qe6 {[%clk 0:01:12]}  Qh4 {[%clk 0:01:37]} 25. g3 {[%clk 0:00:57]}  Qd8 {[%clk 0:01:34]} 26. Nc4 {[%clk 0:00:55]}  Nxc4 {[%clk 0:01:27]} 27. Qxc4 {[%clk 0:00:54]}  Qf6 {[%clk 0:01:26]} 28. Rad1 {[%clk 0:00:51]}  Re8 {[%clk 0:01:23]} 29. Rd7 {[%clk 0:00:49]}  Re4 {[%clk 0:01:23]} 30. Qxf7+ {[%clk 0:00:46]}  Qxf7 {[%clk 0:01:24]} 31. Rxf7 {[%clk 0:00:47]}  Kxf7 {[%clk 0:01:25]} 32. b3 {[%clk 0:00:46]}  g5 {[%clk 0:01:22]} 33. Ne2 {[%clk 0:00:45]}  Be5 {[%clk 0:01:21]} 34. Nc1 {[%clk 0:00:26]}  f4 {[%clk 0:01:19]} 35. gxf4 {[%clk 0:00:26]}  gxf4 {[%clk 0:01:20]} 36. Bd2 {[%clk 0:00:26]}  f3 {[%clk 0:01:18]} 37. Re1 {[%clk 0:00:25]}  Rxe1+ {[%clk 0:01:14]} 38. Bxe1 {[%clk 0:00:26]}  Bc7 {[%clk 0:01:15]} 39. Nd3 {[%clk 0:00:27]}  Ke6 {[%clk 0:01:16]} 40. Bc3 {[%clk 0:00:19]}  Kd5 {[%clk 0:01:16]} 41. Kf1 {[%clk 0:00:19]}  Ke4 {[%clk 0:01:16]} 42. Ne1 {[%clk 0:00:15]}  h5 {[%clk 0:01:11]} 43. a3 {[%clk 0:00:15]}  Bd8 {[%clk 0:01:06]} 44. b4 {[%clk 0:00:15]}  a4 {[%clk 0:01:06]} 45. Bd2 {[%clk 0:00:13]}  Bf6 {[%clk 0:01:04]} 46. b5 {[%clk 0:00:12]}  Kd5 {[%clk 0:01:02]} 47. Bb4 {[%clk 0:00:12]}  Ke4 {[%clk 0:00:50]} 48. c6 {[%clk 0:00:12]}  bxc6 {[%clk 0:00:51]} 49. bxc6 {[%clk 0:00:13]}  Be5 {[%clk 0:00:52]} 50. Ba5 {[%clk 0:00:13]} 1-0


[Site "https://www.chess.com"]

[Event "Titled Tuesday Blitz January 17 Early 2023"]
[White "Wagner, Dennis"]
[Black "Goldin, Alexander"]
[WhiteFideId "24650684"]
[BlackFideId "2019540"]
[WhiteElo "2595"]
[BlackElo "2542"]
[Result "1-0"]
[Round "08"]
[TimeControl "180+2"]
[Date "2023.01.17"]
[WhiteClock "0:00:55"]
[BlackClock "0:00:09"]

1. d4 {[%clk 0:03:00]}  d5 {[%clk 0:02:59]} 2. c4 {[%clk 0:03:01]}  e6 {[%clk 0:02:59]} 3. Nf3 {[%clk 0:02:59]}  Nf6 {[%clk 0:02:59]} 4. g3 {[%clk 0:02:59]}  Bb4+ {[%clk 0:02:58]} 5. Bd2 {[%clk 0:02:58]}  Bd6 {[%clk 0:02:58]} 6. Bg2 {[%clk 0:02:58]}  c6 {[%clk 0:02:58]} 7. O-O {[%clk 0:02:58]}  Nbd7 {[%clk 0:02:58]} 8. Bc3 {[%clk 0:02:58]}  Ne4 {[%clk 0:02:47]} 9. Nfd2 {[%clk 0:02:46]}  f5 {[%clk 0:02:09]} 10. Nxe4 {[%clk 0:02:46]}  fxe4 {[%clk 0:02:09]} 11. f3 {[%clk 0:02:46]}  exf3 {[%clk 0:02:04]} 12. exf3 {[%clk 0:02:46]}  O-O {[%clk 0:02:03]} 13. f4 {[%clk 0:02:45]}  dxc4 {[%clk 0:01:59]} 14. Nd2 {[%clk 0:02:32]}  Nb6 {[%clk 0:01:42]} 15. Qe2 {[%clk 0:02:30]}  Bd7 {[%clk 0:01:38]} 16. Nxc4 {[%clk 0:02:18]}  Nxc4 {[%clk 0:01:37]} 17. Qxc4 {[%clk 0:02:19]}  Qf6 {[%clk 0:01:28]} 18. Rae1 {[%clk 0:02:13]}  Rae8 {[%clk 0:01:27]} 19. Qb3 {[%clk 0:02:00]}  Bc8 {[%clk 0:00:37]} 20. d5 {[%clk 0:01:58]}  Qf7 {[%clk 0:00:31]} 21. dxc6 {[%clk 0:01:56]}  bxc6 {[%clk 0:00:28]} 22. Bxc6 {[%clk 0:01:50]}  Bc5+ {[%clk 0:00:22]} 23. Kh1 {[%clk 0:01:46]}  Ba6 {[%clk 0:00:20]} 24. Rf3 {[%clk 0:01:37]}  Rc8 {[%clk 0:00:20]} 25. Be4 {[%clk 0:01:36]}  Bb6 {[%clk 0:00:16]} 26. f5 {[%clk 0:01:25]}  Bc4 {[%clk 0:00:14]} 27. Qc2 {[%clk 0:01:25]}  Kh8 {[%clk 0:00:13]} 28. f6 {[%clk 0:01:22]}  g6 {[%clk 0:00:11]} 29. Qd2 {[%clk 0:01:14]}  Kg8 {[%clk 0:00:10]} 30. Qh6 {[%clk 0:01:12]}  e5 {[%clk 0:00:10]} 31. h4 {[%clk 0:01:04]}  Rfe8 {[%clk 0:00:10]} 32. h5 {[%clk 0:01:03]}  gxh5 {[%clk 0:00:09]} 33. Rf5 {[%clk 0:01:03]}  Kh8 {[%clk 0:00:09]} 34. Rxh5 {[%clk 0:00:55]}  Bd5 {[%clk 0:00:09]} 35. Qxh7+ {[%clk 0:00:54]}  Qxh7 {[%clk 0:00:08]} 36. Rxh7+ {[%clk 0:00:55]}  Kg8 {[%clk 0:00:09]} 37. Rg7+ {[%clk 0:00:55]}  Kf8 {[%clk 0:00:09]} 38. Bxd5 {[%clk 0:00:55]} 1-0


[Site "https://www.chess.com"]